[Event "OBEM 2019"]
[Site "Bremen"]
[Date "2019.04.13"]
[Round "1.1"]
[White "Koerber, Uwe"]
[Black "Margraf, Daniel"]
[Result "0-1"]
[ECO "B23"]
[WhiteElo "1738"]
[BlackElo "2238"]
[Annotator "NA"]
[PlyCount "102"]
[EventDate "2019.04.13"]
[EventType "swiss"]
[EventCountry "GER"]
[SourceTitle "playchess.com"]
[Source "ChessBase"]
[SourceQuality "1"]
[TimeControl "40/5400+30:1800+30"]

1. e4 {[%emt 0:00:00]} c5 {[%emt 0:01:38]} 2. Nc3 {[%emt 0:02:06]} Nc6 {[%emt 0:00:24]} 3. f4 {[%emt 0:00:38]} e6 {[%emt 0:01:04]} 4. Bb5 {[%emt 0:02:47]} (4. Nf3 d5 5. Bb5 Nge7 6. exd5 exd5 7. Qe2 f6 8. Bxc6+ bxc6 9. d3 Kf7 10. O-O Nf5 11. Bd2 h5 12. Rae1 h4 13. Na4 Bd7 14. Qf2 d4 15. Qe2 {0-1 (36) Jones,G (2640)-Van Wely,L (2656) chess.com INT 2018}) 4... Nd4 {[%emt 0:00:33] LiveBook: 5 Games} 5. a4 {[%emt 0:01:07]} Nxb5 {[%emt 0:01:15]} 6. Nxb5 {[%emt 0:00:37] B23: Closed Sicilian: Lines without g3} a6 {[%emt 0:02:33]} 7. Nc3 {[%emt 0:00:48]} d5 {[%emt 0:00:16]} 8. d3 {[%emt 0:02:47]} Nf6 {[%emt 0:01:46]} 9. e5 $146 {[%emt 0:03:18]} ({Predecessor:} 9. Qe2 d4 10. Nd1 Bd7 11. Nf3 b5 12. axb5 axb5 13. Rxa8 Qxa8 {0-1 (42) Rodriguez Rodriguez,H (1849)-Bobadilla Viera,J (2299) Valera 2017}) 9... d4 {[%emt 0:00:20]} 10. exf6 {[%emt 0:06:21]} dxc3 {[%emt 0:00:07]} 11. bxc3 {[%emt 0:02:10]} Qxf6 {[%emt 0:00:20]} 12. Qd2 {[%emt 0:14:34]} Bd6 {[%emt 0:03:15]} 13. Nf3 {[%emt 0:01:35]} Bd7 {[%emt 0:00:14]} 14. d4 {[%emt 0:01:25]} Bc6 {[%emt 0:05:47]} 15. Ne5 {[%emt 0:02:00]} Bxe5 {[%emt 0:00:52]} 16. fxe5 {[%emt 0:01:22]} Qh4+ {[%emt 0:00:23]} 17. Qf2 {[%emt 0:03:50]} Qe4+ {[%emt 0:01:36]} 18. Be3 {[%emt 0:04:56]} O-O {[%emt 0:01:23]} 19. O-O {[%emt 0:06:22]} f6 {[%emt 0:00:58]} 20. exf6 {[%emt 0:02:46]} Rxf6 {[%emt 0:00:28]} 21. Qe2 {[%emt 0:00:24]} Raf8 {[%emt 0:01:14]} 22. dxc5 {[%emt 0:04:45]} Rxf1+ {[%emt 0:03:33]} 23. Rxf1 {[%emt 0:00:10]} Rxf1+ {[%emt 0:00:07]} 24. Kxf1 {[%emt 0:00:41]} Bxa4 {[%emt 0:00:12]} 25. Qd2 {[%emt 0:08:52]} h6 {[%emt 0:01:12]} ({But not} 25... Qxc2 $6 26. Qd8+ Kf7 27. Qc7+ {[%mdl 64] Double Attack} Kf8 28. Qd6+ {[%mdl 64] Double Attack} Kf7 29. Qc7+ {[%mdl 64] Double Attack} Kf8 30. Qd6+ {[%mdl 64] Double Attack} Kf7 31. Qc7+ $11 {[%mdl 64] Double Attack}) 26. h3 {[%emt 0:04:23]} Bxc2 {[%emt 0:01:28]} 27. Qd4 {[%emt 0:02:06]} Qg6 {[%emt 0:01:34]} 28. Bf4 {[%emt 0:04:44]} Be4 {[%emt 0:01:01]} 29. Qd2 {[%emt 0:01:43]} Bd5 {[%emt 0:00:44]} 30. Kg1 {[%emt 0:00:47]} Qe4 {[%emt 0:01:09]} 31. Qf2 {[%emt 0:04:41]} a5 {[%emt 0:00:38]} 32. Qg3 {[%emt 0:00:58]} Kh7 {[%emt 0:01:57]} 33. Be5 {[%emt 0:00:23]} Qg6 {[%emt 0:00:39]} 34. Qxg6+ {[%emt 0:00:27]} Kxg6 {[%emt 0:00:07]} 35. Bf4 {[%emt 0:00:10]} Kf5 {[%emt 0:00:25]} 36. g3 {[%emt 0:01:53]} Ke4 {[%emt 0:00:54]} 37. Kf2 {[%emt 0:00:28]} Bc4 {[%emt 0:00:27]} 38. Ke1 {[%emt 0:01:14]} a4 $2 {[%emt 0:00:19]} (38... e5 39. Bc1 Kd3) 39. Kd2 {[%emt 0:02:08]} a3 {[%emt 0:00:45]} 40. Kc2 {[%emt 0:00:39]} a2 {[%emt 0:00:12]} 41. Kb2 {[%emt 0:30:23]} e5 {[%emt 0:30:11]} 42. Bd2 {[%emt 0:01:42]} Kf3 {[%emt 0:01:04]} 43. g4 {[%emt 0:02:04]} e4 {[%emt 0:00:11]} 44. g5 {[%emt 0:02:51]} e3 {[%emt 0:02:15]} 45. Be1 {[%emt 0:00:00]} hxg5 {[%emt 0:00:00]} 46. c6 {[%emt 0:00:00]} bxc6 {[%emt 0:00:00]} 47. h4 {[%emt 0:00:00]} g4 {[%emt 0:00:00]} 48. h5 {[%emt 0:00:00]} g3 {[%emt 0:00:00]} 49. h6 {[%emt 0:00:00]} gxh6 {[%emt 0:00:00]} 50. Bxg3 {[%emt 0:00:00]} Kxg3 {[%emt 0:00:00]} 51. Kc2 {[%emt 0:00:00]} e2 {[%emt 1:08:00]} 0-1

[Event "OBEM 2019"]
[Site "Bremen"]
[Date "2019.04.13"]
[Round "1.2"]
[White "Issing, Peter"]
[Black "Bruening, Martin"]
[Result "1-0"]
[ECO "D37"]
[WhiteElo "2156"]
[BlackElo "1727"]
[Annotator "NA"]
[PlyCount "105"]
[EventDate "2019.04.13"]
[EventType "swiss"]
[EventCountry "GER"]
[SourceTitle "playchess.com"]
[Source "ChessBase"]
[SourceQuality "1"]
[TimeControl "40/5400+30:1800+30"]

1. d4 {[%emt 0:00:00]} d5 {[%emt 0:00:00]} 2. c4 {[%emt 0:00:00]} e6 {[%emt 0:00:00]} 3. Nf3 {[%emt 0:00:36]} Nf6 {[%emt 0:00:30]} 4. Nc3 {[%emt 0:00:18]} Nbd7 {[%emt 0:01:29]} 5. Bf4 {[%emt 0:03:05]} c6 {[%emt 0:01:40]} 6. e3 {[%emt 0:03:37]} Be7 {[%emt 0:00:30]} 7. Qc2 {[%emt 0:06:23]} O-O {[%emt 0:01:45]} 8. Bd3 {[%emt 0:04:36]} Re8 {[%emt 0:02:30]} 9. h3 {[%emt 0:08:25]} Nf8 {[%emt 0:03:25] D37: Queen's Gambit Declined: 5 Bf4} 10. O-O {[%emt 0:06:34] LiveBook: 5 Games} Ng6 {[%emt 0:04:04]} 11. Bg3 {[%emt 0:02:07]} Bd6 {[%emt 0:03:54]} 12. Ne5 {[%emt 0:01:29]} Qc7 {[%emt 0:07:40]} 13. f4 {[%emt 0:03:04]} dxc4 $146 {[%emt 0:06:56]} ({Predecessor:} 13... Nd7 14. c5 Be7 15. f5 exf5 16. Bxf5 Ndxe5 17. Bxg6 hxg6 18. Bxe5 {½-½ (46) Froehlich,P (2314)-Tell,M (1915) Hamburg 1999}) 14. Nxc4 {[%emt 0:03:48]} b6 {[%emt 0:05:20]} 15. Nxd6 {[%emt 0:01:15]} Qxd6 {[%emt 0:00:17]} 16. Bh2 {[%emt 0:01:06]} Qe7 {[%emt 0:04:47]} 17. e4 {[%emt 0:09:04]} Bb7 {[%emt 0:05:22]} 18. e5 {[%emt 0:01:43]} Nd5 {[%emt 0:02:52]} 19. Nxd5 {[%emt 0:01:24]} cxd5 {[%emt 0:01:22]} 20. Qd2 {[%emt 0:05:17]} Rac8 {[%emt 0:03:15]} 21. f5 {[%emt 0:07:56]} exf5 {[%emt 0:01:59]} 22. Rxf5 {[%emt 0:00:59]} Bc6 {[%emt 0:04:54]} 23. Raf1 {[%emt 0:01:49]} Rf8 {[%emt 0:01:24]} 24. Bg3 {[%emt 0:02:36]} Bd7 {[%emt 0:02:13]} 25. R5f3 {[%emt 0:03:41]} Be6 {[%emt 0:01:04]} 26. Be1 {[%emt 0:01:45]} Rc7 {[%emt 0:02:49]} 27. Qf2 {[%emt 0:01:29]} a5 {[%emt 0:04:37]} 28. Bd2 {[%emt 0:00:57]} Rfc8 {[%emt 0:02:09]} 29. Rg3 {[%emt 0:01:13]} Qd7 {[%emt 0:05:05]} 30. h4 $18 {[%emt 0:02:18]} Bg4 {[%emt 0:09:09]} 31. h5 {[%emt 0:00:19]} Nf8 {[%emt 0:00:45]} 32. h6 {[%emt 0:00:28]} Ng6 {[%emt 0:02:57]} 33. Rxg4 {[%emt 0:03:10]} Qxg4 {[%emt 0:01:28]} 34. Bf5 {[%emt 0:00:14]} Qh4 {[%emt 0:01:43]} 35. g3 {[%emt 0:02:11]} Qe7 {[%emt 0:01:00]} 36. Bxc8 {[%emt 0:00:49]} Rxc8 {[%emt 0:00:15]} 37. Bg5 {[%emt 0:03:26]} Qe6 {[%emt 0:02:59]} 38. hxg7 {[%emt 0:00:57]} Rc4 {[%emt 0:02:16]} 39. Be3 {[%emt 0:04:58]} b5 {[%emt 0:01:39]} 40. Qf6 {[%emt 0:02:41]} Rc8 {[%emt 0:01:12]} 41. Qxe6 {[%emt 0:31:53]} fxe6 {[%emt 0:30:20]} 42. Bh6 {[%emt 0:00:12]} b4 {[%emt 0:00:00]} 43. Rf6 {[%emt 0:00:00]} Re8 {[%emt 0:00:00]} 44. Kf1 {[%emt 0:00:00]} a4 {[%emt 0:00:00]} 45. Ke1 {[%emt 0:00:00]} a3 {[%emt 0:00:00]} 46. bxa3 {[%emt 0:00:00]} bxa3 {[%emt 0:00:00]} 47. Kd1 {[%emt 0:00:00]} Rb8 {[%emt 0:00:00]} 48. Rxe6 {[%emt 0:00:00]} Kf7 {[%emt 0:00:00]} 49. Rf6+ {[%emt 0:00:00]} Ke7 {[%emt 0:00:00]} 50. Rf8 {[%emt 0:00:00]} Nxf8 {[%emt 0:00:00]} 51. gxf8=Q+ {[%emt 0:00:00]} Rxf8 {[%emt 0:00:00]} 52. Bxf8+ {[%emt 0:00:00]} Kxf8 {[%emt 0:00:00]} 53. Kc2 {[%emt 0:00:00]} 1-0

[Event "OBEM 2019"]
[Site "Bremen"]
[Date "2019.04.13"]
[Round "1.3"]
[White "Ficken, Hartmut"]
[Black "Hundack, Rolf"]
[Result "0-1"]
[ECO "C55"]
[WhiteElo "1711"]
[BlackElo "2140"]
[Annotator "NA"]
[PlyCount "72"]
[EventDate "2019.04.13"]
[EventType "swiss"]
[EventCountry "GER"]
[SourceTitle "playchess.com"]
[Source "ChessBase"]
[SourceQuality "1"]
[TimeControl "40/5400+30:1800+30"]

1. e4 {[%emt 0:00:00]} e5 {[%emt 0:00:00]} 2. Nf3 {[%emt 0:00:15]} Nc6 {[%emt 0:00:00]} 3. Bc4 {[%emt 0:01:01]} Be7 {[%emt 0:00:00]} 4. c3 {[%emt 0:02:17]} Nf6 {[%emt 0:03:05]} 5. d3 {[%emt 0:01:18]} O-O {[%emt 0:00:25]} 6. Be3 {[%emt 0:00:30] C55: Two Knights: 4 d3, 4 d4 exd4 5 e5 and Max Lange Attack} (6. Nbd2 d6 7. Bb3 Na5 8. Bc2 c5 9. Nf1 Nc6 10. Ng3 Re8 11. O-O d5 12. Re1 d4 13. Bb3 Be6 14. Ng5 {1-0 (67) Neiksans,A (2631)-Ponomariov,R (2709) Tallinn 2016}) 6... d5 {[%emt 0:01:12]} 7. exd5 {[%emt 0:00:52]} Nxd5 {[%emt 0:00:23]} 8. O-O {[%emt 0:00:20]} Bg4 {[%emt 0:02:29]} 9. Nbd2 {[%emt 0:03:10]} a6 {[%emt 0:04:18]} 10. a4 {[%emt 0:05:32]} Kh8 {[%emt 0:05:56]} 11. Qc2 {[%emt 0:00:45]} f5 {[%emt 0:01:07]} 12. Nb3 $146 {[%emt 0:11:04]} ({Predecessor:} 12. Bg5 Bxg5 13. Nxg5 Qxg5 14. Bxd5 {0-1 (40) Milivojevic,N (1640)-Sand,P (1975) Zalaegerszeg 1988}) 12... f4 {[%emt 0:04:42]} 13. Bc5 {[%emt 0:02:45]} Bxf3 {[%emt 0:01:28]} 14. gxf3 {[%emt 0:00:10]} Rf6 {[%emt 0:01:19]} 15. Kh1 {[%emt 0:10:27]} b6 {[%emt 0:14:10]} 16. Bxe7 {[%emt 0:00:20]} Ndxe7 {[%emt 0:00:52]} 17. Rad1 {[%emt 0:02:17]} Rh6 {[%emt 0:07:02]} 18. Rg1 {[%emt 0:03:20]} Qd7 {[%emt 0:06:53]} 19. Rg4 {[%emt 0:02:27]} Qf5 {[%emt 0:07:40]} 20. Rdg1 $11 {[%emt 0:02:13]} Rf8 {[%emt 0:19:24]} 21. Qe2 {[%emt 0:13:44]} Qh5 {[%emt 0:12:19]} 22. R1g2 {[%emt 0:01:42]} Nf5 {[%emt 0:00:42]} 23. Nd2 {[%emt 0:08:38]} Qh3 {[%emt 0:01:31]} 24. Bd5 {[%emt 0:04:06]} Nh4 {[%emt 0:01:04]} 25. Bxc6 {[%emt 0:04:50]} Nxg2 {[%emt 0:00:49]} 26. Rxg2 {[%emt 0:00:19]} Rxc6 {[%emt 0:00:36]} 27. Qxe5 {[%emt 0:00:22]} Qd7 {[%emt 0:00:38]} 28. Ne4 {[%emt 0:03:40]} Re6 {[%emt 0:01:27]} 29. Qh5 {[%emt 0:00:30]} Qe7 {[%emt 0:01:18]} 30. Qd5 {[%emt 0:02:43]} Re5 {[%emt 0:00:17]} 31. Qc4 {[%emt 0:01:36]} b5 {[%emt 0:00:40]} 32. axb5 {[%emt 0:00:32]} axb5 {[%emt 0:00:01]} 33. Qa2 {[%emt 0:00:40]} c5 {[%emt 0:00:22]} 34. Qa5 {[%emt 0:01:57]} b4 {[%emt 0:00:31]} 35. cxb4 {[%emt 0:00:50]} cxb4 {[%emt 0:00:08]} 36. Qxb4 {[%emt 0:00:13]} Qxb4 {[%emt 0:00:23]} 0-1

[Event "OBEM 2019"]
[Site "Bremen"]
[Date "2019.04.13"]
[Round "1.4"]
[White "Elmali, Timur"]
[Black "Steinkraus-Kueck, Hans-Guenter"]
[Result "1-0"]
[ECO "D40"]
[WhiteElo "2121"]
[BlackElo "1647"]
[Annotator "NA"]
[PlyCount "84"]
[EventDate "2019.04.13"]
[EventType "swiss"]
[EventCountry "GER"]
[SourceTitle "playchess.com"]
[Source "ChessBase"]
[SourceQuality "1"]
[TimeControl "40/5400+30:1800+30"]

1. d4 {[%emt 0:00:00]} e6 {[%emt 1:30:30]} 2. c4 {[%emt 0:00:18]} d5 {[%emt 0:00:00]} 3. Nc3 {[%emt 0:00:10]} c5 {[%emt 0:00:00]} 4. e3 {[%emt 0:00:37]} Nf6 {[%emt 0:00:00]} 5. Nf3 {[%emt 0:00:05]} Nc6 {[%emt 0:00:00]} 6. a3 {[%emt 0:00:19]} cxd4 {[%emt 0:00:00]} 7. exd4 {[%emt 0:00:14]} h6 {[%emt 0:00:00] D40: Queen's Gambit Declined: Semi-Tarrasch with 5 e3} (7... Be7 8. c5 Ne4 9. Bd3 Nxc3 10. bxc3 b6 11. cxb6 axb6 12. Qe2 Qc7 13. O-O O-O 14. a4 Qa7 15. Ng5 g6 16. Rd1 h6 {1-0 (56) Mamedyarov,S (2817)-Vidit,S (2702) Kolkata 2018}) 8. c5 {[%emt 0:01:12]} a6 {[%emt 0:00:00]} 9. Bd3 {[%emt 0:03:06]} Be7 {[%emt 0:00:00]} 10. b4 {[%emt 0:01:22]} e5 $146 {[%emt 0:00:00]} (10... g5 $16) ({Predecessor:} 10... Qc7 11. h3 O-O 12. O-O e5 13. dxe5 Nxe5 14. Nxe5 Qxe5 15. Bb2 {1-0 (30) Kempe,A (1538)-Silber,S (1095) Oberhof 2011}) 11. dxe5 {[%emt 0:00:50]} Ng4 {[%emt 0:00:00]} 12. Qe2 {[%emt 0:04:04]} O-O {[%emt 0:00:00]} 13. O-O {[%emt 0:10:28]} Re8 {[%emt 0:00:00]} 14. Re1 {[%emt 0:05:50]} (14. Bc2 $18) 14... Bh4 {[%emt 0:00:00]} 15. g3 {[%emt 0:00:34]} Bf6 {[%emt 0:00:00]} 16. Bb2 {[%emt 0:04:05]} Ngxe5 {[%emt 0:00:00]} 17. Nxe5 {[%emt 0:00:23]} Nxe5 {[%emt 0:00:00]} 18. f3 {[%emt 0:09:27]} Bh3 {[%emt 0:00:00]} 19. Rad1 {[%emt 0:01:02]} Nxd3 {[%emt 0:00:00]} 20. Qxd3 {[%emt 0:02:04]} Rxe1+ {[%emt 0:00:00]} 21. Rxe1 {[%emt 0:00:17]} Be6 {[%emt 0:00:00]} 22. Qd2 {[%emt 0:08:01]} b6 $11 {[%emt 0:00:00]} 23. Na4 {[%emt 0:03:00]} Bxb2 {[%emt 0:00:00]} 24. Qxb2 {[%emt 0:01:36]} bxc5 {[%emt 0:00:00]} 25. Nxc5 {[%emt 0:00:53]} Qb6 {[%emt 0:00:00]} 26. Qd4 {[%emt 0:04:49]} Qc6 {[%emt 0:00:00]} 27. Rb1 {[%emt 0:16:38]} Bf5 {[%emt 0:00:00]} 28. Rd1 {[%emt 0:00:49]} Be6 {[%emt 0:00:00]} 29. Rb1 {[%emt 0:01:45]} Bf5 {[%emt 0:00:00]} 30. Rb2 {[%emt 0:00:07]} Re8 {[%emt 0:00:00]} 31. Kf2 {[%emt 0:01:52]} Be6 {[%emt 0:02:51]} 32. Re2 {[%emt 0:03:52]} a5 {[%emt 0:01:36]} 33. bxa5 {[%emt 0:00:37]} Qb5 {[%emt 0:01:27]} 34. Qb4 {[%emt 0:02:12]} Bd7 {[%emt 0:02:44]} 35. Qxb5 {[%emt 0:02:47]} Bxb5 {[%emt 0:00:02]} 36. Rxe8+ {[%emt 0:00:26]} Bxe8 {[%emt 0:00:02]} 37. a6 {[%emt 0:01:49]} Bc6 {[%emt 0:00:10]} 38. a7 {[%emt 0:00:12]} Kf8 {[%emt 0:02:17]} 39. Nd7+ {[%emt 0:00:16]} Ke8 {[%emt 0:00:02]} 40. Nb6 {[%emt 0:00:07]} Kd8 {[%emt 0:00:08]} 41. a8=Q+ {[%emt 0:30:17]} Bxa8 {[%emt 0:30:01]} 42. Nxa8 {[%emt 0:12:28]} Ke8 {[%emt 0:09:10]} 1-0

[Event "OBEM 2019"]
[Site "Bremen"]
[Date "2019.04.14"]
[Round "2.1"]
[White "Margraf, Daniel"]
[Black "Gebur, Thomas"]
[Result "1-0"]
[ECO "B23"]
[WhiteElo "2238"]
[BlackElo "1853"]
[Annotator "NA"]
[PlyCount "49"]
[EventDate "2019.04.13"]
[EventType "swiss"]
[EventCountry "GER"]
[SourceTitle "playchess.com"]
[Source "ChessBase"]
[SourceQuality "1"]
[TimeControl "40/5400+30:1800+30"]

1. e4 {[%emt 0:00:00]} c5 {[%emt 0:00:00]} 2. Nc3 {[%emt 0:00:05]} Nc6 {[%emt 0:00:00]} 3. f4 {[%emt 0:00:20]} g6 {[%emt 0:00:00]} 4. Nf3 {[%emt 0:00:23]} Bg7 {[%emt 0:00:00]} 5. a3 {[%emt 0:03:05]} e6 {[%emt 0:01:16]} 6. b4 {[%emt 0:01:44] B23: Closed Sicilian: Lines without g3} b6 {[%emt 0:22:43]} 7. e5 {[%emt 0:05:06]} Nge7 {[%emt 0:12:54]} (7... d5 8. Nb5 Bf8 9. Bb2 a6 10. Nd6+ Bxd6 11. exd6 Nf6 12. b5 Na5 13. h4 {0-1 (41) Lie,K (2547)-Robson,R (2570) Wijk aan Zee 2010}) 8. b5 {[%emt 0:02:42]} Nd4 {[%emt 0:02:27]} 9. Nxd4 {[%emt 0:03:57]} cxd4 {[%emt 0:00:14]} 10. Ne4 {[%emt 0:03:23]} O-O {[%emt 0:00:17]} 11. Qf3 {[%emt 0:01:57]} Rb8 $146 {[%emt 0:03:38]} ({Predecessor:} 11... Bb7 12. Bd3 Qc7 13. Qh3 Bxe4 14. Bxe4 {0-1 (30) Zimniok,L (2140)-Jansa,V (2449) Czechia 2014}) 12. Bd3 {[%emt 0:03:56]} f6 {[%emt 0:03:38]} 13. exf6 {[%emt 0:01:24]} Bxf6 {[%emt 0:00:12]} 14. Nxf6+ {[%emt 0:00:21]} Rxf6 {[%emt 0:00:34]} 15. Bb2 {[%emt 0:03:56]} e5 {[%emt 0:05:01]} 16. O-O {[%emt 0:05:11]} Rxf4 {[%emt 0:04:08] [#]} 17. Qg3 $1 {[%emt 0:00:47]} Qc7 {[%emt 0:08:50]} 18. Rxf4 {[%emt 0:01:18]} exf4 {[%emt 0:00:06]} 19. Qg5 {[%emt 0:01:49]} d5 {[%emt 0:10:44]} 20. Re1 {[%emt 0:01:07]} Nf5 {[%emt 0:01:37]} 21. Re8+ {[%emt 0:08:36]} Kf7 {[%emt 0:00:22]} 22. Rh8 {[%emt 0:03:00]} Qd6 {[%emt 0:05:43]} 23. Rxh7+ {[%emt 0:02:19]} Kg8 {[%emt 0:00:25]} 24. Rxa7 {[%emt 0:01:13]} Qe6 {[%emt 0:03:27]} 25. Qd8+ {[%emt 0:44:51]} 1-0

[Event "OBEM 2019"]
[Site "Bremen"]
[Date "2019.04.14"]
[Round "2.2"]
[White "Sommer, Andreas"]
[Black "Issing, Peter"]
[Result "1/2-1/2"]
[ECO "E11"]
[WhiteElo "1848"]
[BlackElo "2156"]
[Annotator "NA"]
[PlyCount "104"]
[EventDate "2019.04.13"]
[EventType "swiss"]
[EventCountry "GER"]
[SourceTitle "playchess.com"]
[Source "ChessBase"]
[SourceQuality "1"]
[TimeControl "40/5400+30:1800+30"]

1. d4 {[%emt 0:00:00]} Nf6 {[%emt 0:00:00]} 2. c4 {[%emt 0:00:00]} e6 {[%emt 0:00:00]} 3. Nf3 {[%emt 0:00:00]} Bb4+ {[%emt 0:00:13]} 4. Bd2 {[%emt 0:00:29]} c5 {[%emt 0:00:11]} 5. a3 {[%emt 0:02:30]} Bxd2+ {[%emt 0:00:40]} 6. Qxd2 {[%emt 0:01:09] E11: Bogo-Indian} cxd4 {[%emt 0:08:34]} 7. Nxd4 {[%emt 0:01:37]} O-O {[%emt 0:11:28]} 8. Nc3 {[%emt 0:03:21]} d5 {[%emt 0:02:06]} 9. cxd5 {[%emt 0:02:21]} (9. e3 dxc4 10. Bxc4 Bd7 11. O-O Nc6 12. Rfd1 Nxd4 13. Qxd4 Bc6 14. Qxd8 {½-½ (14) Stupak,K (2535)-Moiseenko,A (2663) Gjakova 2016}) 9... exd5 {[%emt 0:01:19]} 10. e3 {[%emt 0:01:37]} b6 {[%emt 0:04:07]} 11. Be2 $146 {[%emt 0:10:23]} ({Predecessor:} 11. Bd3 Bb7 12. O-O Nbd7 13. Rac1 Nc5 14. Bb1 Nfe4 15. Qd1 Rc8 16. b4 Nxc3 17. Rxc3 Ne4 18. Rxc8 {½-½ (18) Dani,F (1766)-Ragyelik,A (1818) Hungary 2014}) 11... Bb7 {[%emt 0:00:45]} 12. O-O {[%emt 0:00:06]} Nbd7 {[%emt 0:02:03]} 13. Rac1 {[%emt 0:02:40]} Qe7 {[%emt 0:02:36]} 14. Bb5 {[%emt 1:10:47]} Ne5 {[%emt 0:01:07]} 15. Qe2 {[%emt 0:00:00]} a6 {[%emt 0:02:25]} 16. Bd3 {[%emt 0:00:00]} Rfe8 {[%emt 0:03:14]} 17. Na4 {[%emt 0:00:00]} b5 {[%emt 0:04:41]} 18. Nc5 {[%emt 0:00:00]} Bc8 {[%emt 0:00:56]} 19. Bf5 {[%emt 0:00:00]} Nc4 {[%emt 0:04:53]} 20. Nd3 {[%emt 0:00:00]} Bb7 {[%emt 0:02:12]} 21. Rc2 {[%emt 0:00:00]} g6 {[%emt 0:05:33]} 22. Bh3 {[%emt 0:00:00]} Ne4 {[%emt 0:01:28]} 23. Ra1 {[%emt 0:00:00]} Rad8 {[%emt 0:11:01]} 24. Nb4 {[%emt 0:00:00]} Rd6 {[%emt 0:03:21]} 25. b3 {[%emt 0:00:00]} Nb6 {[%emt 0:06:23]} 26. Rac1 {[%emt 0:00:00]} Na8 {[%emt 0:01:56]} 27. Bc8 {[%emt 0:00:00]} Rf6 {[%emt 0:04:14]} 28. f3 {[%emt 0:00:00]} Nd6 {[%emt 0:00:54]} 29. Bxb7 {[%emt 0:00:00]} Qxb7 {[%emt 0:00:30]} 30. Rc6 {[%emt 0:00:00]} Nb6 {[%emt 0:06:07]} 31. Rc7 {[%emt 0:00:00]} Qa8 {[%emt 0:00:12]} 32. Nbc6 {[%emt 0:01:40]} Nbc8 {[%emt 0:03:03]} 33. Qd2 {[%emt 0:02:54]} Kg7 {[%emt 0:00:43]} 34. Qc3 {[%emt 0:00:38]} h5 {[%emt 0:02:54]} 35. h4 {[%emt 0:00:54]} a5 {[%emt 0:01:52]} 36. Nxa5 {[%emt 0:01:23]} Ne7 {[%emt 0:00:11]} 37. Nac6 {[%emt 0:01:41]} Nxc6 {[%emt 0:01:27]} 38. Rxc6 {[%emt 0:00:48]} Qd8 {[%emt 0:01:45]} 39. Re1 {[%emt 0:01:40]} Qe7 {[%emt 0:00:57]} 40. a4 {[%emt 0:00:49]} (40. Rc5 $18 {is more deadly.}) 40... bxa4 {[%emt 0:00:42]} 41. bxa4 {[%emt 0:30:21]} Kg8 {[%emt 0:08:00]} 42. Nb5 {[%emt 0:00:00]} Rd8 {[%emt 0:04:26]} 43. Nxd6 $2 {[%emt 0:00:00]} (43. Rd1 $18 {and White stays clearly on top.}) 43... Rfxd6 {[%emt 0:00:22]} 44. Rxd6 {[%emt 0:00:00]} Rxd6 {[%emt 0:00:25]} 45. Qd4 {[%emt 0:00:00]} Qd8 {[%emt 0:03:16]} 46. Rb1 {[%emt 0:00:00]} Rc6 {[%emt 0:00:58]} 47. Qe5 {[%emt 0:00:00]} Rc8 {[%emt 0:01:06]} 48. g3 {[%emt 0:00:00]} Qa5 {[%emt 0:01:48]} 49. Qd4 {[%emt 0:00:00]} Kh7 {[%emt 0:01:26]} 50. Rd1 {[%emt 0:00:00]} Rc4 {[%emt 0:02:15]} 51. Qxd5 $14 {[%emt 0:00:00]} Qxd5 {[%emt 0:00:01]} 52. Rxd5 {[%emt 0:00:00]} Rxa4 {[%emt 0:00:02]} 1/2-1/2